bitfinex/quotes_ETHUSD_20250721
["timestamp","ask_amount","ask_price","bid_price","bid_amount"]
[1753132113248,0.002,3759.7,3759.6,11.082956]
[1753132113454,0.002,3759.7,3759.6,13.00824691]
[1753132114835,0.002,3759.7,3759.6,31.67773822]
[1753132115036,0.002,3759.7,3759.6,29.90835422]
[1753132116417,0.002,3759.7,3759.6,20.26742222]
[1753132116618,0.002,3759.7,3759.6,22.35507722]
[1753132118132,0.002,3759.7,3759.6,18.28807722]
[1753132118345,0.002,3759.7,3759.6,21.49110422]
[1753132118657,1e-08,3759.7,3759.6,21.49110422]
[1753132119531,1e-08,3759.7,3759.6,11.74112591]
[1753132119733,1e-08,3759.7,3759.6,12.18592591]
[1753132119953,1e-08,3759.7,3759.6,3.0]
[1753132119954,0.44010001,3759.7,3759.6,3.0]
[1753132120263,0.44010001,3759.7,3759.6,10.27585743]
[1753132121960,0.44010001,3759.7,3759.6,3.55]
[1753132122266,0.44010001,3759.7,3759.6,10.27585743]
[1753132122621,1e-08,3759.7,3759.6,10.27585743]
[1753132123306,1.21600001,3759.7,3759.6,7.065]
[1753132123610,0.90870001,3759.7,3759.6,9.72485743]
[1753132124057,1.34880001,3759.7,3759.6,9.72485743]
[1753132125060,0.90870001,3759.7,3759.6,9.72485743]
[1753132125257,0.13280001,3759.7,3759.6,10.27485743]
[1753132126060,1e-08,3759.7,3759.6,12.22847718]
[1753132126260,1e-08,3759.7,3759.6,13.05387718]
[1753132126686,1e-08,3759.7,3759.6,17.29825549]
[1753132129070,1e-08,3759.7,3759.6,11.78367718]
[1753132129270,0.47200001,3759.7,3759.6,4.065]
[1753132129481,0.8026,3759.6,3759.1,2.66019935]
[1753132129756,3.46264314,3759.4,3758.7,9.03947739]
[1753132130068,0.1328,3759.0,3758.9,3.0]
[1753132130267,0.1328,3759.0,3758.9,6.21035276]
[1753132131416,1e-08,3759.7,3759.6,6.20985743]
[1753132131719,1e-08,3759.7,3759.6,10.27485743]
[1753132135070,1e-08,3759.7,3759.6,11.09155743]
[1753132135273,1e-08,3759.7,3759.6,12.84133743]
[1753132137214,1e-08,3759.7,3759.6,12.38503743]
[1753132138414,1e-08,3759.7,3759.6,11.56833743]
[1753132140289,1e-08,3759.7,3759.6,11.56933743]
[1753132144616,1e-08,3759.7,3759.6,6.21085743]
[1753132144820,0.47200001,3759.7,3759.6,0.001]
[1753132144992,0.47200001,3759.7,3759.6,4.065]
[1753132145593,1.30370001,3759.7,3759.6,0.001]
[1753132145808,4.80641054,3759.7,3759.6,4.065]
[1753132146238,2.14662386,3759.7,3759.6,4.065]
[1753132146600,4.80641054,3759.7,3759.6,4.065]
[1753132147628,2.14662386,3759.7,3759.6,4.065]
[1753132147938,4.75641054,3759.7,3759.6,4.065]
[1753132156251,2.09662386,3759.7,3759.6,4.065]
[1753132156455,4.75641054,3759.7,3759.6,4.065]
[1753132157999,2.09662386,3759.7,3759.6,4.065]
[1753132158327,3.91348669,3759.7,3759.6,4.065]
[1753132159936,3.91348669,3759.7,3759.6,0.001]
[1753132162103,3.91548669,3759.7,3759.6,0.001]
[1753132163807,0.002,3759.7,3759.6,0.001]
[1753132164744,0.4722,3759.7,3759.6,0.001]
[1753132169827,3.13198668,3759.7,3759.6,0.001]
[1753132170915,0.4722,3759.7,3759.6,0.001]
[1753132171250,3.13198668,3759.7,3759.6,0.001]
[1753132171451,0.002,3759.7,3759.6,0.001]
[1753132171630,3.13198668,3759.7,3759.6,0.001]
[1753132172628,0.4722,3759.7,3759.6,0.001]
[1753132174617,0.002,3759.7,3759.6,0.001]
[1753132178936,0.4722,3759.7,3759.6,0.001]
[1753132179855,0.4722,3759.7,3759.6,4.063]
[1753132183163,0.002,3759.7,3759.6,4.063]
[1753132184650,0.4722,3759.7,3759.6,4.063]
[1753132185874,0.002,3759.7,3759.6,4.063]
[1753132186551,3.13198668,3759.7,3759.6,0.001]
[1753132186755,5.1959098,3759.7,3759.6,0.001]
[1753132187095,2.66035276,3758.9,3758.8,0.001]
[1753132187272,9.78589127,3758.9,3758.8,4.062]
[1753132187573,2.66028397,3759.0,3758.8,4.062]
[1753132189634,7.89773851,3759.1,3758.8,4.062]
[1753132190070,2.6602888,3759.0,3758.8,4.062]
[1753132191076,2.66035276,3758.9,3758.8,4.062]
[1753132191279,3.12995276,3758.9,3758.8,4.062]
[1753132201113,0.4696,3758.9,3758.8,4.062]
[1753132201301,3.12995276,3758.9,3758.8,4.062]
[1753132201813,3.12995276,3758.9,3758.8,0.001]
[1753132202019,3.12995276,3758.9,3758.8,4.061]
[1753132202805,0.4696,3758.9,3758.8,4.061]
[1753132203015,3.12995276,3758.9,3758.8,4.061]
[1753132205333,2.66035276,3758.9,3758.8,0.001]
[1753132205537,4.49874443,3758.9,3758.8,0.001]
[1753132205833,4.79214443,3758.9,3758.8,0.001]
[1753132206039,2.66035276,3758.9,3758.8,0.001]
[1753132206192,10.25549127,3758.9,3758.8,0.001]
[1753132208097,7.12553851,3758.9,3758.8,0.001]
[1753132208293,0.763,3759.2,3758.8,0.001]
[1753132209031,2.66033437,3759.0,3758.8,0.001]
[1753132209647,3.12982988,3759.1,3758.8,0.001]
[1753132209838,2.66028404,3759.0,3758.8,0.001]
[1753132210000,2.66035276,3758.9,3758.8,0.001]
[1753132210902,2.66031285,3759.0,3758.8,0.001]
[1753132211421,1.12488992,3759.1,3758.8,0.001]
[1753132211422,3.78512839,3759.1,3758.8,0.001]
[1753132211741,1.12488992,3759.1,3758.8,0.001]
[1753132212177,3.78511663,3759.1,3758.8,0.001]
[1753132212945,7.12553851,3759.5,3758.8,0.001]
[1753132213119,2.65994268,3759.5,3758.9,0.4279]
[1753132213532,2.65994268,3759.5,3758.9,3.08823214]
[1753132214021,7.12553851,3759.4,3758.8,0.001]
[1753132214217,2.66010203,3759.3,3758.9,4.059]
[1753132214421,0.4696,3759.2,3758.9,4.059]
[1753132214859,3.1297525,3759.2,3758.9,4.059]
[1753132215831,7.91407236,3759.4,3758.9,4.059]
[1753132216060,9.78582049,3759.0,3758.9,4.059]
[1753132216267,10.25542049,3759.0,3758.9,4.059]
[1753132216425,11.62943247,3759.0,3758.9,4.059]
[1753132217359,2.66035276,3758.9,3758.8,0.001]
[1753132217664,3.25055276,3758.9,3758.8,0.001]
[1753132219676,2.66120836,3757.7,3757.4,0.8093]
[1753132219865,2.66127315,3757.6,3757.2,0.001]
[1753132220056,3.11867315,3757.6,3757.5,10.438]
[1753132222844,3.11867315,3757.6,3757.5,4.058]
[1753132223977,0.4574,3757.6,3757.5,4.058]
[1753132224476,3.11867315,3757.6,3757.5,4.058]
[1753132224695,0.4574,3757.6,3757.5,4.058]
[1753132225982,3.11867315,3757.6,3757.5,4.058]
[1753132226381,0.4574,3757.6,3757.5,4.058]
[1753132227592,2.66121237,3757.7,3757.5,4.058]
[1753132227751,3.11861237,3757.7,3757.5,4.058]
[1753132228387,0.4574,3757.7,3757.5,4.058]
[1753132228600,3.11862036,3757.7,3757.5,4.058]
[1753132229303,0.4574,3757.7,3757.5,4.058]
[1753132230100,1.2234,3758.9,3757.6,1.0199]
[1753132230300,1.2234,3758.9,3757.7,1.2902]
[1753132230456,0.766,3759.1,3758.2,2.66078402]
[1753132230794,0.1328,3758.3,3758.2,2.66078402]
[1753132230977,3.11751841,3759.3,3758.2,4.058]
[1753132231291,0.1328,3758.5,3758.4,2.66070668]
[1753132231697,0.1328,3758.5,3758.4,0.4699]
[1753132232793,0.1328,3758.5,3758.4,3.13060668]
[1753132233859,0.1328,3758.5,3758.4,0.4699]
[1753132235699,0.1328,3758.5,3758.4,3.13060668]
[1753132237916,0.1328,3758.5,3758.4,0.4699]
[1753132241223,0.1328,3758.5,3758.0,3.0]
[1753132241383,10.24370513,3758.4,3758.1,4.057]
[1753132241579,4.15586548,3758.3,3758.1,4.057]
[1753132241807,2.66084827,3758.2,3758.1,4.057]
[1753132241997,2.79376926,3758.1,3757.9,4.68917831]
[1753132242227,3.6984385,3758.3,3758.0,4.056]
[1753132242228,3.11826383,3758.2,3758.0,4.056]
[1753132243018,3.11831908,3758.1,3758.0,4.056]
[1753132244925,4.05514776,3758.1,3758.0,4.056]
[1753132245101,5.33414776,3758.1,3758.0,4.056]
[1753132245424,2.66134397,3757.5,3757.4,6.383]
[1753132245609,2.66134397,3757.5,3757.4,10.439]
[1753132245814,3.11874397,3757.5,3757.4,10.439]
[1753132251411,2.66134397,3757.5,3757.4,10.439]
[1753132252402,3.13614397,3757.5,3757.4,10.439]
[1753132258515,3.96644397,3757.5,3757.4,10.439]
[1753132258718,2.66134397,3757.5,3757.4,10.439]
[1753132258902,2.66129716,3757.6,3757.4,10.439]
[1753132259497,2.66134397,3757.5,3757.4,10.439]
[1753132260119,8.43063851,3757.7,3757.4,10.439]
[1753132260428,2.66131556,3757.6,3757.4,10.439]
[1753132261131,9.53982024,3757.7,3757.4,10.439]
[1753132261132,12.20103389,3757.7,3757.4,10.439]
[1753132261301,2.66127515,3757.6,3757.4,10.439]
[1753132262896,2.66134397,3757.5,3757.4,10.439]
[1753132263437,0.4748,3757.6,3757.4,10.439]
[1753132264435,2.66134397,3757.5,3757.4,10.439]
[1753132264936,0.4748,3757.6,3757.4,10.439]
[1753132265499,3.13608747,3757.6,3757.4,10.439]
[1753132267027,3.13607994,3757.6,3757.4,10.439]
[1753132267333,4.14749737,3757.6,3757.4,6.383]
[1753132267547,4.14749737,3757.6,3757.5,4.055]
[1753132268241,4.62229737,3757.6,3757.5,4.055]
[1753132270816,1.48621743,3757.6,3757.5,4.055]
[1753132271014,2.66092873,3758.1,3757.5,7.16061526]
[1753132271642,0.7513,3758.3,3757.9,2.66102504]
[1753132271840,0.7513,3758.6,3758.0,4.055]
[1753132272030,0.7513,3758.6,3758.0,4.4993]
[1753132272211,2.66072013,3758.4,3758.0,4.4993]
[1753132272410,2.66077747,3758.3,3758.0,4.055]
[1753132272807,3.13553458,3758.4,3758.0,4.055]
[1753132273739,2.66078663,3758.3,3758.0,4.055]
[1753132274049,3.13553582,3758.4,3758.0,4.055]
[1753132274343,2.66078299,3758.3,3758.0,4.055]
[1753132274712,3.13553169,3758.4,3758.0,4.055]
[1753132274910,2.6607778,3758.3,3758.0,4.055]
[1753132275118,0.4748,3758.4,3758.0,4.055]
[1753132275319,3.13555097,3758.4,3758.0,4.055]
[1753132275722,2.66078286,3758.3,3758.0,4.055]
[1753132276645,3.13551756,3758.4,3758.0,4.055]
[1753132276805,2.66065195,3758.5,3758.1,0.4443]
[1753132277339,8.11704851,3758.6,3758.0,4.055]
[1753132277551,2.66071321,3758.4,3758.0,4.5082]
[1753132278113,2.66066412,3758.5,3758.0,4.5082]
[1753132278306,2.66071077,3758.4,3758.0,4.5082]
[1753132279133,2.66071077,3758.4,3758.0,4.055]
[1753132279323,2.66078865,3758.3,3758.0,4.055]
[1753132279751,3.12392584,3758.4,3758.0,4.055]
[1753132280247,2.66091908,3758.1,3758.0,4.055]
[1753132280422,3.12411908,3758.1,3758.0,4.055]
[1753132285949,4.00454278,3758.4,3758.0,4.055]
[1753132286251,2.66087053,3758.2,3758.0,4.055]
[1753132286829,3.12407053,3758.2,3758.0,4.055]
[1753132287443,2.66091908,3758.1,3758.0,4.055]
[1753132290119,10.49933282,3758.1,3758.0,4.055]
[1753132290324,0.8289,3758.0,3757.2,0.001]
[1753132290637,2.79428564,3757.3,3757.2,0.001]
[1753132291054,3.25748564,3757.3,3757.2,0.001]
[1753132291258,3.93486676,3757.3,3757.2,0.001]
[1753132294432,1.27338112,3757.3,3757.2,0.001]
[1753132294636,11.06040527,3757.3,3757.2,0.001]
[1753132295558,3.46125647,3757.2,3757.1,1e-08]
[1753132295759,12.32129227,3757.2,3757.1,1e-08]
[1753132298828,3.46146901,3756.9,3756.8,1e-08]
[1753132299137,14.64000752,3756.9,3756.8,1e-08]
[1753132299441,15.10320752,3756.9,3756.8,1e-08]
[1753132299643,19.02062964,3756.9,3756.8,1e-08]
[1753132301065,19.02062964,3756.9,3756.6,1e-08]
[1753132301066,5.66183986,3756.8,3756.6,1e-08]
[1753132301250,5.66183986,3756.8,3756.3,0.001]
[1753132301251,3.4627233,3756.4,3756.3,0.001]
[1753132301445,17.64126181,3756.4,3756.3,0.001]
[1753132301766,14.05146181,3756.4,3756.3,0.001]
[1753132301965,18.78184293,3756.4,3756.3,0.001]
[1753132302158,11.65630442,3756.4,3756.3,0.001]
[1753132302329,8.65630442,3756.4,3756.3,0.001]
[1753132302528,2.6621233,3756.4,3756.3,0.001]
[1753132302734,2.66208309,3756.5,3756.3,0.001]
[1753132303067,6.71508309,3756.5,3756.3,0.001]
[1753132303429,2.6621233,3756.4,3756.3,0.001]
[1753132304434,7.12553851,3757.1,3756.3,0.4542]
[1753132304637,7.12553851,3757.1,3756.4,0.8323]
[1753132304830,4.8728,3757.3,3756.5,0.4532]
[1753132305037,6.71452013,3757.3,3756.5,0.4532]
[1753132305231,2.66166973,3757.1,3756.5,0.4532]
[1753132305635,2.66163288,3757.1,3756.5,0.4532]
[1753132305860,2.66170594,3757.0,3756.5,0.4532]
[1753132306165,2.66161458,3757.2,3756.5,0.4532]
[1753132306341,2.66161458,3757.2,3756.5,3.1152158]
[1753132306670,2.6616314,3757.1,3756.6,0.4532]
[1753132306847,2.66168848,3757.1,3756.6,0.4532]
[1753132307050,2.66168848,3757.1,3756.4,3.49441619]
[1753132307051,0.1328,3756.6,3756.4,3.49441619]
[1753132307247,0.1328,3756.5,3756.4,2.00006751]
[1753132307449,2.66190542,3756.8,3756.3,0.001]
[1753132307757,7.12553851,3756.9,3756.4,4.5096]
[1753132307940,9.78731667,3756.9,3756.4,4.052]
[1753132308274,9.78731667,3756.9,3756.5,0.4576]
[1753132308637,2.66184056,3756.8,3756.5,0.4576]
[1753132309037,7.12553851,3756.9,3756.5,0.4576]
[1753132309038,2.66178813,3756.9,3756.5,0.4576]
[1753132309449,0.1328,3756.5,3756.4,4.052]
[1753132310059,0.1328,3756.5,3756.4,4.5096]
[1753132310570,0.1328,3756.5,3756.3,0.001]
[1753132310571,2.6621233,3756.4,3756.3,0.001]
[1753132310869,3.96766314,3756.4,3756.3,0.001]
[1753132311286,4.44056314,3756.4,3756.3,0.001]
[1753132314066,3.96766314,3756.4,3756.3,0.001]
[1753132314366,2.6621233,3756.4,3756.3,0.001]
[1753132315305,7.12553851,3756.7,3756.3,0.001]
[1753132315306,2.66206649,3756.5,3756.3,0.001]
[1753132315593,1.2528,3757.4,3756.3,0.4586]
[1753132315891,2.66189345,3756.8,3756.3,0.4586]
[1753132316081,2.66189345,3756.8,3756.3,0.001]
[1753132316280,2.66189345,3756.8,3756.4,0.4576]
[1753132316792,2.6619758,3756.7,3756.4,0.4576]
[1753132317580,2.66186088,3756.8,3756.4,0.4576]
[1753132317780,2.66181407,3756.9,3756.5,0.4576]
[1753132318092,2.66155647,3757.2,3756.6,0.4576]
[1753132318471,2.66177065,3756.9,3756.6,0.4576]
[1753132318676,2.66177713,3756.9,3756.6,0.4576]
[1753132319179,2.66177713,3756.9,3756.3,0.001]
[1753132319180,7.12553851,3756.9,3756.3,0.001]
[1753132319388,8.31099236,3756.9,3756.3,0.001]
[1753132319705,2.66206564,3756.5,3756.3,0.001]
[1753132320010,0.4729,3756.8,3756.3,0.001]
[1753132320213,2.66209657,3756.5,3756.3,0.001]
[1753132320766,3.1350233,3756.4,3756.3,0.001]
[1753132320968,4.50566969,3756.4,3756.3,0.001]
[1753132323280,5.28956969,3756.4,3756.3,0.001]
[1753132326174,4.50566969,3756.4,3756.3,0.001]
[1753132326480,8.08476969,3756.4,3756.3,0.001]
[1753132327284,4.03276969,3756.4,3756.3,0.001]
[1753132328168,7.12553851,3756.7,3756.3,0.001]
[1753132328370,2.66200978,3756.6,3756.3,0.001]
[1753132328595,2.66200978,3756.6,3756.3,1.2234]
[1753132328906,2.66184003,3756.8,3756.3,0.7658]
[1753132329208,2.66184003,3756.8,3756.4,0.4576]
[1753132329821,2.66192621,3756.7,3756.4,0.4576]
[1753132330302,2.66184504,3756.8,3756.4,0.4576]
[1753132330501,2.66195472,3756.7,3756.4,0.4576]
[1753132330802,0.1328,3756.4,3756.3,0.7658]
[1753132334996,0.1328,3756.4,3756.3,1.2234]
[1753132335919,3.54730909,3756.4,3756.3,0.001]
[1753132336217,4.34540909,3756.4,3756.3,0.001]
[1753132339013,3.7677,3756.2,3755.8,1e-08]
[1753132339184,2.66269038,3755.6,3755.5,1e-08]
[1753132339385,7.53179038,3755.6,3755.5,1e-08]
[1753132339615,8.00299038,3755.6,3755.5,1e-08]
[1753132340600,3.95199038,3755.6,3755.5,1e-08]
[1753132340806,8.00299038,3755.6,3755.5,1e-08]
[1753132340987,9.72609583,3755.6,3755.5,1e-08]
[1753132341922,12.72609583,3755.6,3755.5,1e-08]
[1753132345237,2.66304492,3755.1,3755.0,1e-08]
[1753132345416,3.39383959,3756.1,3755.0,1e-08]
[1753132345417,9.78805482,3755.9,3755.1,0.7937]
[1753132345596,9.78805482,3755.9,3755.2,0.4624]
[1753132345597,6.71351631,3755.9,3755.2,0.4624]
[1753132345797,2.66290268,3755.4,3755.2,0.4624]
[1753132346025,2.66290309,3755.3,3755.2,0.4624]
[1753132346239,2.66284796,3755.4,3755.2,0.4624]
[1753132346529,2.66290309,3755.3,3755.2,0.4624]
[1753132346713,2.66285517,3755.4,3755.2,0.4624]
[1753132347298,2.66290309,3755.3,3755.2,0.4624]
[1753132348927,2.66273272,3755.6,3755.2,0.4624]
[1753132349118,2.66282592,3755.5,3755.2,0.4624]
[1753132349438,2.66290309,3755.3,3755.2,0.4624]
[1753132349808,4.052,3755.9,3755.1,0.7937]
[1753132350010,2.662974,3755.2,3755.1,0.7937]
[1753132350537,2.66292143,3755.3,3755.1,0.7937]
[1753132351448,2.66284326,3755.4,3755.1,0.7937]
[1753132352449,2.66276536,3755.5,3755.1,1.2561]
[1753132352610,2.66276536,3755.5,3755.0,1e-08]
[1753132352611,2.79584492,3755.1,3755.0,1e-08]
[1753132353107,3.26704492,3755.1,3755.0,1e-08]
[1753132353741,4.07994492,3755.1,3755.0,1e-08]
[1753132353936,4.07994492,3755.1,3754.0,0.7728]
[1753132353937,2.66389621,3753.9,3753.0,0.001]
[1753132354132,2.66389621,3753.9,3753.4,0.7728]
[1753132354533,2.66383007,3754.0,3753.8,0.4634]
[1753132354733,2.66389621,3753.9,3753.8,0.001]
[1753132355038,2.66384862,3754.0,3753.8,0.001]
[1753132355246,2.66377734,3754.1,3753.8,0.001]
[1753132355414,2.66382702,3754.0,3753.8,0.001]
[1753132355853,0.4712,3754.3,3753.8,0.001]
[1753132356045,4.055,3754.3,3753.8,0.001]
[1753132356227,2.66366639,3754.3,3753.8,0.001]
[1753132356620,4.24924231,3754.5,3753.8,0.001]
[1753132356849,2.6637547,3754.1,3753.8,0.001]
[1753132357034,0.47204423,3754.4,3753.8,0.001]
[1753132357235,2.66363876,3754.3,3753.8,0.001]
[1753132357458,2.66376182,3754.1,3753.8,0.001]
[1753132358017,0.47204423,3754.4,3753.8,0.001]
[1753132358327,0.26627654,3755.4,3753.8,0.001]
[1753132358328,0.4712,3755.3,3754.2,0.7524]
[1753132358526,2.66332736,3754.8,3754.3,0.4624]
[1753132358727,2.66333217,3754.7,3754.3,0.4624]
[1753132359330,2.66340608,3754.6,3754.2,0.7524]
[1753132359529,2.66340608,3754.6,3753.9,3.0]
[1753132359530,2.6636715,3754.3,3753.9,0.7682]
[1753132359731,3.13493801,3754.2,3753.9,0.7682]
[1753132359935,2.66376126,3754.1,3753.9,0.7682]
[1753132360662,2.66382525,3754.0,3753.9,0.7682]
[1753132360850,2.66377168,3754.1,3753.8,0.001]
[1753132361046,2.66361239,3754.3,3753.8,0.001]
[1753132361249,2.6636864,3754.2,3753.8,0.001]
[1753132362825,3.24344838,3754.3,3753.8,0.001]
[1753132363025,2.66369752,3754.2,3753.8,0.001]
[1753132363366,2.6637668,3754.1,3753.8,0.001]
[1753132363547,3.7146612,3754.3,3753.8,0.001]
[1753132363548,2.66373703,3754.2,3753.8,0.001]
[1753132363758,3.03520315,3754.2,3753.8,0.001]
[1753132363922,0.37146612,3754.2,3753.8,0.001]
[1753132364657,0.37146612,3754.2,3753.8,2.66495602]
[1753132364863,0.37146612,3754.2,3753.8,0.001]
[1753132365071,3.13482077,3754.3,3753.8,0.001]
[1753132365658,2.66369574,3754.2,3753.8,0.001]
[1753132366733,0.754,3754.7,3753.8,4.058]
[1753132367077,0.4712,3754.1,3753.8,4.058]
[1753132367788,2.66361336,3754.3,3753.8,4.058]
[1753132368079,3.71001721,3754.3,3753.8,4.058]
[1753132368281,0.467,3754.2,3753.8,4.058]
[1753132368484,2.6631899,3754.9,3753.9,1.2695]
[1753132368646,0.1328,3754.1,3754.0,2.6904635]
[1753132368831,0.1328,3754.1,3754.0,4.14790228]
[1753132369636,0.1328,3754.1,3753.9,0.8074]
[1753132369961,0.1328,3754.1,3754.0,4.057]
[1753132370348,0.5998,3754.1,3754.0,4.057]
[1753132370744,3.26355429,3754.1,3754.0,4.057]
[1753132370946,2.66389621,3753.9,3753.8,0.001]
[1753132371146,3.25664126,3753.9,3753.8,0.001]
[1753132371353,3.72364126,3753.9,3753.8,0.001]
[1753132374954,0.7511,3753.8,3751.6,3.0]
[1753132375146,0.7511,3753.8,3751.4,4.098]
[1753132375147,2.66510313,3752.2,3751.4,4.098]
[1753132375680,2.66510313,3752.2,3752.1,4.119]
[1753132376190,3.13210313,3752.2,3752.1,4.119]
[1753132376691,3.13210313,3752.2,3752.1,0.02]
[1753132377089,3.33162061,3752.2,3752.1,0.02]
[1753132377295,4.13399267,3752.2,3752.1,0.02]
[1753132379198,4.13399267,3752.2,3750.9,0.7732]
[1753132379199,0.7809,3751.1,3750.1,0.02]
[1753132379402,0.0268541,3751.0,3750.1,0.02]
[1753132379611,0.73150091,3750.9,3750.1,0.02]
[1753132379759,0.0268541,3750.8,3750.2,4.131]
[1753132379961,2.69296234,3750.8,3750.2,4.131]
[1753132380177,0.0268541,3750.8,3750.2,4.131]
[1753132380381,0.0268541,3750.8,3750.2,6.79749882]
[1753132380804,14.99162962,3751.9,3750.2,6.79749882]
[1753132380805,0.0268541,3751.4,3750.4,0.8173]
[1753132380967,2.66553412,3751.6,3750.5,7.83607419]
[1753132381166,0.0268541,3751.5,3750.9,2.66597347]
[1753132381404,0.0268541,3751.7,3750.9,3.12807347]
[1753132381591,2.69233431,3751.7,3750.9,3.12807347]
[1753132381789,0.0268541,3751.7,3750.9,0.4621]
[1753132382017,0.19951748,3752.2,3751.0,3.81855955]
[1753132382302,0.0268541,3752.1,3751.3,3.0]
[1753132382503,0.0268541,3752.1,3751.3,2.66571976]
[1753132382689,0.0268541,3752.1,3751.3,2.66574254]
[1753132383007,0.0268541,3752.1,3751.4,6.79965203]
[1753132383205,0.62881752,3752.1,3751.5,4.133]
[1753132383500,0.0268541,3752.5,3751.6,4.133]
[1753132383664,2.66470041,3752.8,3751.6,4.133]
[1753132383665,0.0268541,3752.7,3751.7,0.48875458]
[1753132383868,0.22437764,3752.7,3751.9,2.66531623]
[1753132384069,0.22437764,3752.7,3752.0,0.4621]
[1753132384312,0.22437764,3752.7,3752.0,3.12732132]
[1753132384470,0.22437764,3752.7,3752.1,2.66515469]
[1753132384664,0.22437764,3752.7,3752.2,4.136]
[1753132385780,0.0468541,3752.9,3752.3,0.4621]
[1753132385986,0.02,3752.9,3752.3,0.4621]
[1753132386409,0.02,3752.9,3752.4,2.66495764]
[1753132386994,0.02,3752.9,3752.4,3.12705764]
[1753132387316,0.22449731,3752.9,3752.5,2.66488317]
[1753132387520,0.02,3752.9,3752.6,2.66480658]
[1753132387724,0.02,3752.9,3752.6,2.66481905]
[1753132387932,0.02,3752.9,3752.5,0.4621]
[1753132388230,0.1328,3752.6,3752.5,3.45499007]
[1753132388396,0.1328,3752.6,3752.5,0.7901]
[1753132388597,0.1328,3752.6,3752.5,4.132]
[1753132388798,0.1328,3752.6,3752.2,0.7959]
[1753132389007,2.66473603,3752.8,3752.3,4.132]
[1753132389187,2.69162909,3752.7,3752.2,0.7959]
[1753132389506,0.1328,3752.2,3752.0,2.66524191]
[1753132389693,2.66482236,3752.6,3752.1,4.131]
[1753132389892,0.0268541,3752.5,3752.1,4.131]
[1753132390093,0.1328,3752.1,3751.9,0.7914]
[1753132390294,0.0268541,3752.5,3751.9,0.7914]
[1753132390295,3.15876386,3752.5,3752.0,4.131]
[1753132390528,3.84981459,3752.5,3752.0,4.131]
[1753132391493,2.66496894,3752.4,3752.0,4.131]
[1753132391693,0.0268541,3752.3,3752.0,4.131]
[1753132392117,0.1328,3752.0,3751.7,3.0]
[1753132392317,2.69190217,3752.3,3751.7,3.0]
[1753132392318,2.69190217,3752.3,3751.8,4.129]
[1753132392626,0.38499529,3752.2,3751.8,6.7943624]
[1753132392931,0.0268541,3752.1,3751.9,4.129]
[1753132393130,0.41184939,3752.2,3751.9,4.129]
[1753132393632,3.0769595,3752.2,3751.6,3.0]
[1753132393850,3.54395644,3752.2,3751.7,4.127]
[1753132393996,2.66530629,3752.0,3751.7,4.127]
[1753132394195,0.0268541,3751.9,3751.7,4.127]
[1753132394701,2.69218787,3751.9,3751.8,4.127]
[1753132397899,0.1328,3751.8,3751.0,0.7789]
[1753132398099,0.8284541,3751.9,3751.1,4.123]
[1753132398100,0.1328,3751.4,3751.1,4.123]
[1753132398299,0.0268541,3751.4,3751.1,4.123]
[1753132399315,2.69239167,3751.6,3751.1,4.5793]
[1753132399839,0.0268541,3751.6,3751.1,4.5793]
[1753132400034,0.0268541,3751.6,3751.1,7.2451156]
[1753132400220,0.0268541,3751.7,3751.1,4.5793]
[1753132400429,2.66557891,3751.6,3751.1,4.5793]
[1753132400604,0.0268541,3751.5,3751.1,4.5793]
[1753132401028,0.0268541,3751.5,3751.1,0.4563]
[1753132401238,0.0268541,3751.5,3751.2,4.121]
[1753132402817,2.66536125,3751.9,3751.3,0.4563]
[1753132403145,0.0268541,3751.8,3751.4,0.4563]
[1753132403307,0.0268541,3751.9,3751.5,0.4563]
[1753132403502,0.0268541,3751.9,3751.6,4.12]
[1753132403844,1.14839529,3752.2,3751.6,4.12]
[1753132403845,0.0268541,3752.1,3751.6,7.24176662]
[1753132405008,0.0268541,3752.1,3751.6,4.5763]
[1753132405455,0.0268541,3752.1,3751.6,7.24182334]
[1753132405642,0.0268541,3752.1,3751.7,0.4563]
[1753132406251,2.69202947,3752.1,3751.7,0.4563]
[1753132407630,0.0268541,3752.1,3751.7,3.12175304]
[1753132407863,0.0268541,3752.1,3751.7,1.2329]
[1753132408369,0.0268541,3752.4,3751.9,2.6652654]
[1753132408566,2.6918238,3752.4,3752.0,4.115]
[1753132408728,0.0268541,3752.4,3752.0,4.115]
[1753132408928,0.0268541,3752.4,3752.0,7.23654131]
[1753132409226,0.0268541,3752.5,3752.0,7.23654131]
[1753132409665,0.0268541,3752.5,3752.0,4.5713]
[1753132409967,0.0268541,3752.5,3752.0,7.23653828]
[1753132410460,0.0268541,3752.5,3752.0,4.5713]
[1753132410676,0.0268541,3752.6,3752.1,0.4563]
[1753132411043,0.21717495,3752.9,3752.3,2.66501934]
[1753132411233,0.21717495,3752.9,3752.4,4.113]
[1753132411234,0.0268541,3752.8,3752.4,4.113]
[1753132411429,0.0268541,3752.8,3752.4,4.5693]
[1753132411629,0.0268541,3752.8,3752.4,7.23423937]
[1753132411829,0.0268541,3752.8,3752.5,2.6648803]
[1753132412066,0.21717495,3752.9,3752.5,2.6648803]
[1753132412067,0.02,3752.9,3752.5,0.4563]
[1753132412366,0.02,3752.9,3752.6,0.4563]
[1753132412586,0.02,3752.9,3752.7,4.113]
[1753132413866,0.02,3752.9,3752.8,0.4563]
[1753132414028,0.1328,3752.8,3752.5,0.4563]
[1753132414231,0.02,3752.9,3752.5,0.4563]
[1753132414232,0.02,3752.9,3752.7,2.66468716]
[1753132414673,0.02,3752.9,3752.8,0.4563]
[1753132421473,0.02,3752.9,3752.8,3.12097704]
[1753132424091,0.02,3752.9,3752.8,7.22397704]
[1753132424302,0.02,3752.9,3752.8,7.99587704]